Cogmind - Beta 14 *** ADVENTURER MODE // 2024.08.19 @ 20:21:15 Player: AppleSource Result: Destroyed by 86-RFD(R) with Subdweller Beam Cannon Performance ------------- Evolutions (0) 0 Regions Visited (3) 600 Robots Destroyed (20) 100 Value Destroyed (472) 472 Prototype IDs (0) 0 Alien Tech Used (0) 0 Bonus (0) 0 TOTAL SCORE: 1172 Bonus ------- None Cogmind --------- Core Integrity 0/250 Matter 270/300 Energy 57/100 System Corruption 0% Temperature Cool (9) Movement Core (200) Ox3 Location -10/Subcaves Parts ------- > --- POWER (1) -------- (None) > --- PROPULSION (2) --- (None) > --- UTILITY (2) ------ Medium Storage Unit > --- WEAPON (2) ------- Mini Grenade Launcher Mini Grenade Launcher > --- INVENTORY (10) --- Improved Aluminum Leg Compact Matter Pod (150) Structural Scanner Scrap Shield Heavy Battle Rifle Light Cannon Peak State ------------ > --- POWER ------------ Light Nuclear Core > --- PROPULSION ------- Improved Aluminum Leg Improved Aluminum Leg > --- UTILITY ---------- Small Storage Unit ECM Suite > --- WEAPON ----------- Heavy Battle Rifle Light Cannon > --- INVENTORY -------- Improved Aluminum Leg Improved Aluminum Leg High-capacity Storage Unit Structural Scanner Light Assault Rifle Mini Grenade Launcher Mini Grenade Launcher [Rating: 15] Favorites ----------- Power Light Nuclear Core Engine Ion Engine Power Core Light Nuclear Core Propulsion Improved Aluminum Leg Treads Light Treads Leg Improved Aluminum Leg Utility Small Storage Unit Device ECM Suite Storage Small Storage Unit Weapon Light Cannon Ballistic Gun Light Assault Rifle Ballistic Cannon Light Cannon Launcher Mini Grenade Launcher Build | -11 -10 -10 -10 ------- Run | Yrd Mat Min Sub Slots Evolved . | . . . . Power . | . . . . Propulsion . | . . . . Utility . | . . . . Weapon . | . . . . Parts Attached 32 | 7 17 6 2 Power 5 | 2 3 . . Engine 3 | 2 1 . . Core 2 | . 2 . . Reactor . | . . . . Propulsion 7 | 2 4 1 . Treads 4 | 2 2 . . Leg 3 | . 2 1 . Wheel . | . . . . Hover . | . . . . Flight . | . . . . Utility 12 | 1 7 4 . Device 1 | . . 1 . Storage 11 | 1 7 3 . Processor . | . . . . Hackware . | . . . . Protection . | . . . . Artifact . | . . . . Weapon 8 | 2 3 1 2 Energy Gun . | . . . . Energy Cannon . | . . . . Ballistic Gun 5 | 2 2 1 . Ballistic Cannon 1 | . 1 . . Launcher 2 | . . . 2 Special Weapon . | . . . . Impact Weapon . | . . . . Slashing Weapon . | . . . . Piercing Weapon . | . . . . Special Melee Weapon . | . . . . Unidentified Prototypes . | . . . . Parts Lost 4 | . . . 4 Power 1 | . . . 1 Propulsion 2 | . . . 2 Utility 1 | . . . 1 Weapon . | . . . . Highest Loss Streak 4 | . . . 4 To Critical Strikes . | . . . . Average Slot Usage (%) 88 | . 84 97 96 Engine 5 | . 8 . . Core 8 | . 5 14 12 Treads 12 | . 18 . . Leg 15 | . 8 28 27 Device 4 | . . 11 13 Storage 14 | . 14 13 14 Ballistic Gun 14 | . 14 14 13 Ballistic Cannon 13 | . 13 14 13 Peak Build Rating 15 | 6 11 15 15 Average Rating 9 | 4 7 14 14 On Entrance 8 | . 6 11 15 Naked Turns . | . . . . Heaviest Build 129 | 12 129 24 24 Greatest Support 40 | 40 40 26 26 Greatest Overweight (x) 29 | 2 29 . 1 Average Overweight (x) . | . . . . Largest Inventory Capacity 25 | 8 25 20 10 Average Capacity 11 | 6 13 8 10 Most Carried 9 | 1 7 8 9 Average Carried 4 | . 3 5 7 Final Capacity 10 | 8 8 10 10 Final Carried 7 | 1 7 5 7 Class Distribution -------------------- 100% | Mutant Dominant Class ---------------- Mutant | -10/Materials Mutant | -10/Mines Mutant | -10/Subcaves Resources | -11 -10 -10 -10 ----------- Run | Yrd Mat Min Sub Matter Collected 718 | 254 121 308 35 Remotely . | . . . . Salvage Created 385 | . 174 60 151 Parts 36 | . 9 10 17 Haulers Intercepted . | . . . . Recyclers Shooed 1 | . 1 . . Parts Field Recycled . | . . . . Retrieved Matter . | . . . . Parts Self-Destructed 6 | . . . 6 Prevented . | . . . . Kills | -11 -10 -10 -10 ------- Run | Yrd Mat Min Sub Combat Hostiles Destroyed 20 | . 7 6 7 Guns 11 | . 5 3 3 Cannons 5 | . 2 3 . AOE 4 | . . . 4 Classes Destroyed 3 | . 2 . 1 Swarmer 11 | . 3 6 2 Grunt 4 | . 4 . . Subdweller 5 | . . . 5 Best Kill Streak 5 | . 5 3 4 Combat Bots Only 5 | . 5 3 4 Max Kills in Single Turn 4 | . 1 1 4 Gunslinging . | . . . . Exploded 4 | . . . 4 Melee . | . . . . Uniques/NPCs Destroyed . | . . . . Combat | -11 -10 -10 -10 -------- Run | Yrd Mat Min Sub Hostile Shots Fired 86 | . 39 25 22 Missed 19 | . 10 6 3 Damage Taken 839 | . 259 112 468 Core 262 | . 68 12 182 Absorbed by Shields . | . . . . Ignored by Resistances 249 | . 82 38 129 Regen/Repaired (Parts) 46 | . 46 . . Core Remaining (%) 100 | 100 . . . Volleys Fired 47 | . 29 11 7 Largest 2 | . 2 2 2 Hottest 68 | . 55 68 68 Shots Fired 94 | . 58 22 14 Gun 49 | . 32 11 6 Cannon 43 | . 26 11 6 Launcher 2 | . . . 2 Special . | . . . . Kinetic 92 | . 58 22 12 Thermal . | . . . . Explosive 2 | . . . 2 Electromagnetic . | . . . . Robot Hit Streak 18 | . 18 4 13 Robot Miss Streak 2 | . 2 2 2 Penetration Max . | . . . . Secondary Targets . | . . . . Shots Hit Robots 62 | . 41 12 9 Core Hits 33 | 1 16 7 9 Critical Kills . | . . . . Critical Parts Destroyed 1 | . 1 . . Critical Strikes 1 | . 1 . . Destroy 1 | . 1 . . Melee Attacks . | . . . . Impact . | . . . . Slashing . | . . . . Piercing . | . . . . Sneak Attacks . | . . . . Combat Hostiles . | . . . . Follow-up Attacks . | . . . . Damage Inflicted 1438 | 4 541 212 681 Guns 414 | . 197 86 131 Cannons 485 | . 324 107 54 Explosions 496 | . . . 496 Melee . | . . . . Ramming 43 | 4 20 19 . Kinetic 899 | . 521 193 185 Thermal . | . . . . Explosive 496 | . . . 496 Electromagnetic . | . . . . Impact . | . . . . Slashing . | . . . . Piercing . | . . . . Highest Corruption . | . . . . Average Corruption . | . . . . Corruption Purged . | . . . . Corruption Blocked . | . . . . Overload Shots . | . . . . Overflow Damage . | . . . . Projectiles . | . . . . Explosions . | . . . . Melee . | . . . . Knockbacks 11 | . 8 1 2 Impact . | . . . . Kinetic 11 | . 8 1 2 Secondary . | . . . . Self-Inflicted Damage 20 | . . . 20 Shots 1 | . . . 1 Rammed 2 | 1 1 . . Targets Rammed 9 | 1 5 3 . Kicked 7 | . 4 3 . Crushed . | . . . . Highest Temperature 63 | . 63 60 1 Average Temperature 24 | . 22 27 1 Received Heat Transfer 150 | . 84 . 66 Siege Activations . | . . . . Robots Corrupted . | . . . . Combat Hostiles . | . . . . Parts Fried . | . . . . Impact Corruptions . | . . . . Robots Melted . | . . . . Combat Hostiles . | . . . . Parts Melted . | . . . . Heat Transferred . | . . . . Parts Sabotaged . | . . . . Parts Stolen . | . . . . Parts Stripped . | . . . . Power Chain Reactions . | . . . . Alert | -11 -10 -10 -10 ------- Run | Yrd Mat Min Sub Peak Influence 216 | . 216 160 . Initial 4 | . . 4 . Average 29 | . 26 40 . Maximum Alert Level 1 | . 1 . . Low Security (%) 98 | 100 98 100 . Level 1 1 | . 2 . . Level 2 . | . . . . Level 3 . | . . . . Level 4 . | . . . . Level 5 . | . . . . High Security . | . . . . Max Security . | . . . . Squads Dispatched 1 | . 1 . . Investigation 1 | . 1 . . Extermination . | . . . . Reinforcement . | . . . . Assault . | . . . . Garrison . | . . . . Intercept . | . . . . Searches Triggered . | . . . . Construction Impeded . | . . . . Haulers Reinforced . | . . . . Active Scanning Responses . | . . . . Cargo Convoy Interrupts . | . . . . Stealth | -11 -10 -10 -10 --------- Run | Yrd Mat Min Sub Distress Signals . | . . . . Communications Jammed . | . . . . Distress Signals . | . . . . Times Spotted 47 | . 23 7 17 Peak Tracking Total 11 | . 3 3 11 Tactical Retreats 2 | . 1 1 . Traps | -11 -10 -10 -10 ------- Run | Yrd Mat Min Sub Traps Triggered 2 | . 2 . . Indirectly . | . . . . Trap Hack Attempts . | . . . . Triggered . | . . . . Disarmed . | . . . . Reprogrammed . | . . . . Reused . | . . . . Traps Extracted . | . . . . Installed . | . . . . Triggered . | . . . . Machines | -11 -10 -10 -10 ---------- Run | Yrd Mat Min Sub Machines Disabled . | . . . . Max in Single Turn . | . . . . Machines Repaired . | . . . . Machines Dismantled . | . . . . Machines Sabotaged . | . . . . Overloaded Fab Kills . | . . . . Hacking | -11 -10 -10 -10 --------- Run | Yrd Mat Min Sub Machines Accessed 3 | . 3 . . Terminals 2 | . 2 . . Fabricators . | . . . . Repair Stations 1 | . 1 . . Recycling Units . | . . . . Scanalyzers . | . . . . Garrison Access . | . . . . Total Hacks 7 | . 7 . . Successful 6 | . 6 . . Failed 1 | . 1 . . Catastrophic . | . . . . Database Lockouts . | . . . . Manual . | . . . . Terminals 4 | . 4 . . Fabricators . | . . . . Repair Stations 3 | . 3 . . Recycling Units . | . . . . Scanalyzers . | . . . . Garrison Access . | . . . . Terminal Hacks 4 | . 4 . . Record 3 | . 3 . . Robot Analysis 1 | . 1 . . Fabricator Hacks . | . . . . Repair Station Hacks 2 | . 2 . . Scan Component 1 | . 1 . . Repair 1 | . 1 . . Recycling Unit Hacks . | . . . . Scanalyzer . | . . . . Garrison Access Hacks . | . . . . Unauthorized Hacks . | . . . . Terminals . | . . . . Fabricators . | . . . . Repair Stations . | . . . . Recycling Units . | . . . . Scanalyzers . | . . . . Garrison Access . | . . . . Data Cores Recovered . | . . . . Used . | . . . . Hacking Detections 1 | . 1 . . Full Trace Events 1 | . 1 . . Feedback Events . | . . . . Feedback Blocked . | . . . . Robot Schematics Acquired . | . . . . Robots Built . | . . . . Authchips . | . . . . Time . | . . . . Total Robot Build Rating . | . . . . Part Schematics Acquired . | . . . . Parts Built . | . . . . Authchips . | . . . . Time . | . . . . Total Part Build Rating . | . . . . Parts Repaired 1 | . 1 . . Time 38 | . 38 . . Parts Recycled . | . . . . Recycled Matter . | . . . . Retrieved Matter . | . . . . Retrieved Components . | . . . . Parts Scanalyzed . | . . . . Part Schematics Acquired . | . . . . Parts Damaged . | . . . . Bothacking | -11 -10 -10 -10 ------------ Run | Yrd Mat Min Sub Used RIF Installer . | . . . . Robots Hacked . | . . . . Non-combat . | . . . . Combat . | . . . . Robot Hacks Applied . | . . . . Relay Couplers Released . | . . . . Fabnet Peak Effective % . | . . . . Robots Rewired . | . . . . Allies Hacked . | . . . . Hacks Repelled . | . . . . Allies | -11 -10 -10 -10 -------- Run | Yrd Mat Min Sub Total Allies . | . . . . Largest Group . | . . . . Highest-Rated Group . | . . . . Highest-Rated Ally . | . . . . Total Orders . | . . . . Ally Attacks . | . . . . Total Damage . | . . . . Kills . | . . . . Allies Corrupted . | . . . . Allies Melted . | . . . . Intel | -11 -10 -10 -10 ------- Run | Yrd Mat Min Sub Robot Analysis Total 1 | . 1 . . Derelict Logs Recovered 2 | . . 1 1 Drone Launches . | . . . . Drone Recoveries . | . . . . Exploration | -11 -10 -10 -10 ------------- Run | Yrd Mat Min Sub Turns Passed 3342 | 136 2050 991 165 Spaces Moved 2102 | 112 1097 780 113 Core 71 | 66 5 . . Treads 644 | 46 598 . . Legs 1387 | . 494 780 113 Wheels . | . . . . Hover . | . . . . Flight . | . . . . Fastest Speed 50 | 50 120 120 120 Average Speed 147 | 111 173 120 121 Slowest Speed 1500 | 160 1500 120 190 Overloaded Moves . | . . . . Propulsion Burnouts . | . . . . Robots Hopped . | . . . . Cave-ins Triggered . | . . . . Exploration Rate (%) 50 | 4 90 96 10 Regions Visited 3 Branch Regions 2 Pre-discovered Areas 1 | . . . 1 Known Exits Taken . | . . . . Unknown Exits Taken 3 | 1 1 1 . Scrap Searched 1 | . . 1 . Spaces Dug . | . . . . Terrain Destroyed 14 | . . 1 13 Melee . | . . . . Projectile 1 | . . 1 . AOE 13 | . . . 13 Terrain Rammed . | . . . . Walls Destroyed . | . . . . Machines Disabled . | . . . . Actions | -11 -10 -10 -10 --------- Run | Yrd Mat Min Sub Total 2264 | 119 1199 818 128 Wait 22 | . 20 1 1 Move 2099 | 111 1096 779 113 Hop . | . . . . Pick Up 21 | . 12 7 2 Fast Attach 15 | 6 8 1 . Attach 12 | . 6 4 2 Detach 14 | . 10 2 2 Swap 5 | 1 3 1 . Drop 20 | . 10 9 1 Fire 47 | . 29 11 7 Melee . | . . . . Ram . | . . . . Kick 7 | . 4 3 . Crush 2 | 1 1 . . Escape Stasis . | . . . . Rewire . | . . . . Trap . | . . . . Miscellaneous . | . . . . Route ------- -11/Scrapyard -10/Materials (discovered 3 exits: *Mat x2 / [*Min]) -10/Mines (discovered 3 exits: *Mat x2 / [*Sub]) -10/Subcaves History --------- Turn | Location | Event 11 | -11/Scrapyard | Discovered new exit (range 16) 137 | -11/Scrapyard | Entered Materials 324 | -10/Materials | Build established: Mutant 651 | -10/Materials | Discovered new exit (range 8) 732 | -10/Materials | Repaired Lgt. Nuclear Core 1656 | -10/Materials | Discovered new exit (range 6) 1769 | -10/Materials | Discovered new exit (range 8) 2187 | -10/Materials | Entered Mines 2214 | -10/Mines | Identified exit to Materials 2355 | -10/Mines | A weapon hastily lodged in a ceiling crevice suddenly fell to the ground 2518 | -10/Mines | Discovered exit to Materials (range 10) 3174 | -10/Mines | Discovered new exit (range 3) 3178 | -10/Mines | Entered Subcaves 3226 | -10/Subcaves | Learned location of Storage (-8) 3328 | -10/Subcaves | Ambushed by swarm of Subdwellers 3329 | -10/Subcaves | Ambushed by Subdwellers from Twisted Machinery 3329 | -10/Subcaves | Ambushed by Subdwellers from Twisted Machinery 3329 | -10/Subcaves | Ambushed by Subdwellers from Twisted Machinery 3329 | -10/Subcaves | Ambushed by Subdwellers from Twisted Machinery 3329 | -10/Subcaves | Ambushed by Subdwellers from Twisted Machinery 3334 | -10/Subcaves | Core integrity fell below 50% 3342 | -10/Subcaves | Core integrity fell below 20% 3343 | -10/Subcaves | Destroyed by 86-RFD(R) with Subdweller Beam Cannon Last Messages --------------- OD-HCZ(R) angrily emerges from the Twisted Machinery. E7-FDL(R) angrily emerges from the Twisted Machinery. O9-NAR(R) suffers critical hit (Destroy). O9-NAR(R) destroyed. Imp. Aluminum Leg destroyed. NG-BE2(R) emerges from the Twisted Machinery. OW-JFT(g) destroyed. H4-UJ8(R) suffers critical hit (Destroy). H4-UJ8(R) destroyed. S5-CV3(h) destroyed. 6J-OKI(R) affixes Scrap Shield Fragment to Scrap Shield. ECM Suite destroyed. NG-BE2(R) destroyed. PX-V9P(R) affixes Scrap Shield Fragment to Scrap Shield. ZB-CYB(R) destroyed. 6J-OKI(R) destroyed. 3Y-82W(R) destroyed. PX-V9P(R) destroyed. 7Q-W4C(R) destroyed. Imp. Aluminum Leg destroyed. Map ----- +----------------------------------------------------+ | ?????????????????????## ???????### #???? | | ????????????????????## ??????## ?????? | | ?????????????????#### ??????# #??????? | | ?????????????????# ??##### #??????? | | ?????????????????? ### ### ###????# | | ?????????????????## ## ?## ##??# | | ?????????????????# ?# ???# ### | | ?????????????????# #??## #?### | | ????????????????## #### # ### | | ???????????????## | | ??????????????## | | ??????????????# ### ## !* | | ?????????????## #??# ####### &=%" | | ???????????### ##?# ##????##%!&"" | | ??????????## ?# ### #?????#%%& " | | ??????????? # ;;;; ### #??? ! "## | | ????????????# # ; #?# #??# #? | | ????????????# ##### ##??# #? | | ?????????????# ## #??? ? | | ???????????### = ?? ### | | ???????????# % ## #?? | | ???????????##### ! ## ######??# "?? | | ???????????????# * ; ##?? ##????????###?? | | ???????????????## ##???? #?????????????? | | ???????????????# g #???? #?????????????? | | ???????????????# @ #???????????????????? | | ???????????????# & #???????????????????? | | ???????????????## !%&[R= #???????????????????? | | ????????????????##&&*RR%&%#???????????????????? | | ?????????????????# !&!!R] #???????????????????? | | ?????????????????# [%&&& ???????????????????? | | ?????????????????# ! && [ #??????????????????? | | ?????????????????##"# &&* #??????????????????? | | ????????????????###### %] #??????????????????? | | ???????????????## ###? * ##??????????????????? | | ???????????????# ## #???????????????????? | | ????????????????# ##??????????????????? | | ????????????????# ## ###????????????????? | | ????????????????###### #????????????????? | | ????????????????????## #????????????????? | | ???????????????????## #????????????????? | | ???????????????????# #????????????????? | | ???????????????????## ##????????????????? | | ????????????????????### #?????????????????? | | ??????????????????????# ## #?????????????????? | | ?????????????????????# ### #?????????????????? | | ?????????????????????####?##" ????????????????? | | ????????????????????????????" ??????????????? | | ????????????????????????????# #????????????? | | ?????????????????????????????# ##????????????? | +----------------------------------------------------+ Best States ------------- Heat Dissipation 25 Energy Generation 14 Energy Capacity 250 Matter Stores 300 Matter Capacity 300 Sight Range 16 Terrain Scan Density 10 ECM Strength 1 Resistance: KI 20 Resistance: TH 20 Resistance: EX 20 Resistance: EM 20 Resistance: I 20 Resistance: S 20 Resistance: P 20 Evasion (%) 55 Recoil Reduction 2 Offensive Hacking 10 Item Schematics ----------------- None Robot Schematics ------------------ None Fabricated ------------ Nothing Alien Tech Used ----------------- None Achievements -------------- One Hack Too Far Challenges ------------ None Game ------ Seed CooledWeaponsFirepult Manual? 0 Play Time 00:29:32 Cumulative 3.1 hours Start 2024.08.19 @ 19:47:14 End 2024.08.19 @ 20:21:15 Sessions 1 Manual Loads 0 Difficulty Adventurer Special Mode None Game No. 5 Rogue 0 Adventurer 5 Explorer 0 Win Type - Total 0 Types 0/0/0/0/0/0/0/0/0 Lore% 2 Gallery% 6 Achievement% 7 Wizard Run 0 Options --------- Layout 0 ASCII 0 Keyboard 1 Movement Numpad Keybinds 0 Fullscreen 1 Font 24/Smallcaps Map View 113x50 Zoom Use 0% Tactical HUD 0 Map Filters NONE Filters NONE Steam 1 RUN: ef5bf750-2a2c-416c-85c7-eb5bef3ae699